[Event "73rd RUS-ch Higher League 2020"]
[Site "Sochi"]
[Date "2020.10.12"]
[Round "5.24"]
[White "Rodchenkov, Vitaly"]
[Black "Bimiev, Ahmad"]
[Result "1/2-1/2"]
[ECO "A48"]
[WhiteElo "2321"]
[BlackElo "2252"]
[Annotator "NA"]
[PlyCount "80"]
[EventDate "2020.10.08"]
[EventType "swiss"]
[EventCountry "RUS"]
[SourceTitle "playchess.com"]
[Source "ChessBase"]
[SourceQuality "1"]
[TimeControl "40/5400+30:1800+30"]

1. d4 Nf6 2. Nf3 {[%emt 0:00:00]} g6 {[%emt 0:04:27]} 3. Bg5 {[%emt 0:00:20]} Bg7 {[%emt 0:00:40]} 4. Nbd2 {[%emt 0:00:08]} d5 {[%emt 0:00:55]} 5. e3 {[%emt 0:00:31]} O-O {[%emt 0:00:50]} 6. Bd3 {[%emt 0:00:06]} c5 {[%emt 0:00:31]} 7. c3 {[%emt 0:00:09]} Nc6 {[%emt 0:00:09]} 8. O-O {[%emt 0:01:22]} Nd7 {[%emt 0:07:19]} 9. Rb1 {[%emt 0:03:54] D03: 1 d4 d5 2 Nf3 Nf6 3 Bg5, including Torre Attack with early ...d5.} h6 {[%emt 0:13:30]} 10. Bh4 {[%emt 0:00:08] [#]} Qb6 $146 {[%emt 0:00:24]} ({Predecessor:} 10... g5 11. Bg3 f5 12. Qc2 e6 13. Bd6 c4 14. Be2 Rf7 15. b3 g4 16. Ne1 b5 17. bxc4 bxc4 {1-0 (38) Plachetka,J (2440)-Schmidt,W (2475) Trnava 1985}) 11. b4 {[%emt 0:00:08]} c4 {[%emt 0:01:48]} 12. Bc2 {[%emt 0:03:30]} e5 {[%emt 0:04:38]} 13. b5 {[%emt 0:00:07]} Nd8 {[%emt 0:00:08]} (13... Na5 $11) 14. e4 {[%emt 0:02:54]} exd4 {[%emt 0:02:22]} 15. Nxd4 {[%emt 0:06:49]} ({Not} 15. exd5 $2 d3 $17) 15... Ne6 {[%emt 0:08:21]} 16. Nxe6 {[%emt 0:07:58]} Qxe6 {[%emt 0:01:11]} 17. exd5 Qxd5 {[%emt 0:00:07]} 18. Ne4 {[%emt 0:00:25]} Qxd1 {[%emt 0:13:17]} 19. Rbxd1 {[%emt 0:00:07]} g5 {[%emt 0:00:10]} 20. Bg3 {[%emt 0:02:33]} Nb6 {[%emt 0:00:52]} 21. Bd6 {[%emt 0:02:50]} Re8 {[%emt 0:01:40]} 22. Bb4 {[%emt 0:00:40]} Bf5 $11 {[%emt 0:00:29]} 23. f3 {[%emt 0:04:03]} Rad8 {[%emt 0:06:31]} 24. Ba5 {[%emt 0:03:05]} Bxe4 {[%emt 0:06:58]} 25. Bxe4 {[%emt 0:01:00]} Rxd1 {[%emt 0:00:13]} 26. Rxd1 {[%emt 0:00:06]} Na4 {[%emt 0:00:02]} 27. Bxb7 {[%emt 0:14:08]} Nxc3 {[%emt 0:08:44]} 28. Bxc3 {[%emt 0:29:12]} Bxc3 {[%emt 0:00:02]} 29. Kf1 {[%emt 0:07:37]} Be5 {[%emt 0:06:15]} 30. g3 {[%emt 0:01:22]} c3 {[%emt 0:00:45]} 31. Be4 {[%emt 0:00:45]} Rc8 {[%emt 0:00:36]} 32. Bc2 {[%emt 0:00:40]} Kf8 {[%emt 0:01:11]} 33. Rd5 {[%emt 0:00:54]} Re8 {[%emt 0:02:39]} 34. Rd7 {[%emt 0:00:41]} Re7 {[%emt 0:00:07]} 35. Rd8+ {[%emt 0:01:02]} Re8 {[%emt 0:00:48]} 36. Rd7 {[%emt 0:00:08]} Re7 {[%emt 0:00:06]} 37. Rd8+ {[%emt 0:00:06]} Re8 {[%emt 0:00:08]} 38. Rd7 {[%emt 0:00:06]} Re7 {[%emt 0:00:05]} 39. Rd8+ {[%emt 0:00:08]} Re8 {[%emt 0:00:02]} 40. Rd7 {[%emt 0:00:00]} Re7 1/2-1/2

[Event "73rd RUS-ch Higher League 2020"]
[Site "Sochi"]
[Date "2020.10.12"]
[Round "5.25"]
[White "Ibadov, Dashgyn"]
[Black "Tugarin, Anton"]
[Result "1/2-1/2"]
[ECO "C16"]
[WhiteElo "2296"]
[BlackElo "2224"]
[Annotator "NA"]
[PlyCount "119"]
[EventDate "2020.10.08"]
[EventType "swiss"]
[EventCountry "RUS"]
[SourceTitle "playchess.com"]
[Source "ChessBase"]
[SourceQuality "1"]
[TimeControl "40/5400+30:1800+30"]

1. e4 {[%emt 0:00:00]} e6 {[%emt 0:03:16]} 2. d4 {[%emt 0:00:00]} d5 {[%emt 0:00:07]} 3. Nc3 {[%emt 0:00:00]} Bb4 {[%emt 0:00:09]} 4. e5 {[%emt 0:00:11]} Ne7 {[%emt 0:00:21]} 5. a3 {[%emt 0:00:47]} Bxc3+ {[%emt 0:00:08]} 6. bxc3 {[%emt 0:00:05]} c5 {[%emt 0:05:31]} 7. h4 {[%emt 0:01:03]} Qa5 {[%emt 0:03:40]} 8. Bd2 {[%emt 0:00:29]} Qa4 {[%emt 0:01:06]} 9. Qg4 {[%emt 0:03:50]} Qxc2 {[%emt 0:07:54]} 10. Qxg7 {[%emt 0:11:42]} Rg8 {[%emt 0:00:11]} 11. Qh6 $1 {[%emt 0:00:35]} cxd4 {[%emt 0:06:50]} 12. cxd4 {[%emt 0:06:13]} Qb2 {[%emt 0:01:58] Double Attack} 13. Rc1 {[%emt 0:03:29]} Qxd4 {[%emt 0:02:22]} 14. Nf3 {[%emt 0:11:36]} Qe4+ {[%emt 0:15:10]} 15. Be3 $11 {[%emt 0:00:43]} Qg6 {[%emt 0:14:04]} 16. Qf4 {[%emt 0:04:08]} Nbc6 {[%emt 0:00:41]} 17. h5 {[%emt 0:08:57]} Qf5 {[%emt 0:07:21]} 18. Ng5 {[%emt 0:04:27]} Rh8 {[%emt 0:02:24]} 19. g4 {[%emt 0:04:44]} Qxf4 {[%emt 0:01:52]} 20. Bxf4 {[%emt 0:00:02]} h6 {[%emt 0:00:10]} 21. Nf3 {[%emt 0:00:08]} Bd7 {[%emt 0:00:45]} 22. g5 {[%emt 0:04:27]} O-O-O {[%emt 0:00:42]} 23. Bd3 {[%emt 0:02:21]} Rdg8 {[%emt 0:10:57]} 24. gxh6 {[%emt 0:02:04]} Nf5 {[%emt 0:00:20]} 25. Bxf5 {[%emt 0:00:49]} exf5 {[%emt 0:00:01]} 26. Ng5 {[%emt 0:06:45]} Be6 {[%emt 0:00:18]} 27. Kd2 {[%emt 0:04:46]} Kd7 {[%emt 0:05:06]} 28. Rhg1 {[%emt 0:04:18]} Re8 {[%emt 0:02:38]} 29. Nf3 {[%emt 0:01:25]} d4 {[%emt 0:02:16]} 30. Kd3 {[%emt 0:06:23]} Bd5 {[%emt 0:01:49]} 31. Rxc6 {[%emt 0:00:41]} bxc6 {[%emt 0:01:01]} 32. Nxd4 {[%emt 0:00:10]} Be4+ {[%emt 0:00:32]} 33. Ke3 {[%emt 0:02:10]} c5 {[%emt 0:00:13]} 34. Nb3 {[%emt 0:01:45]} Rc8 {[%emt 0:01:02]} 35. Rc1 {[%emt 0:01:59]} c4 {[%emt 0:01:18]} 36. Nd4 {[%emt 0:00:18]} Rhg8 {[%emt 0:01:05]} 37. Nb5 {[%emt 0:01:15]} Bd5 {[%emt 0:00:44]} 38. Rd1 {[%emt 0:01:22]} Rc5 {[%emt 0:00:45]} 39. Nc3 {[%emt 0:00:53]} Ke6 {[%emt 0:00:33]} 40. a4 {[%emt 0:00:00]} a6 {[%emt 0:00:00]} 41. Ne2 {[%emt 0:11:40]} c3 {[%emt 0:16:22]} 42. Nd4+ {[%emt 0:00:02]} Ke7 {[%emt 0:01:30]} 43. Nxf5+ {[%emt 0:06:26]} Kd7 {[%emt 0:00:18]} 44. Nd4 {[%emt 0:01:49]} Kc8 {[%emt 0:09:00]} 45. Rc1 {[%emt 0:02:35]} Kb7 {[%emt 0:00:29]} 46. Kd3 {[%emt 0:02:24]} Rgc8 {[%emt 0:03:25]} 47. Bg5 {[%emt 0:03:05]} Rh8 {[%emt 0:02:00]} 48. f4 {[%emt 0:03:47]} Kb6 {[%emt 0:00:39]} 49. Rxc3 {[%emt 0:02:21]} Be4+ {[%emt 0:00:29]} 50. Kd2 {[%emt 0:00:02]} Rxc3 {[%emt 0:00:16]} 51. Kxc3 {[%emt 0:00:00]} Kc5 {[%emt 0:00:20]} 52. e6 {[%emt 0:03:36]} fxe6 {[%emt 0:00:39]} 53. Nxe6+ {[%emt 0:00:01]} Kd6 {[%emt 0:00:41]} 54. Nd8 {[%emt 0:00:21]} Rh7 {[%emt 0:00:40]} 55. Kd4 {[%emt 0:00:24]} Bf5 {[%emt 0:00:48]} 56. Bf6 {[%emt 0:00:53]} Kd7 {[%emt 0:00:21]} 57. Bg5 {[%emt 0:01:30]} Bg4 {[%emt 0:01:55]} 58. Ke5 {[%emt 0:00:24]} Bxh5 {[%emt 0:00:20]} 59. f5 {[%emt 0:00:28]} Rxh6 {[%emt 0:00:40]} 60. Ke4 1/2-1/2

[Event "73rd RUS-ch Higher League 2020"]
[Site "Sochi"]
[Date "2020.10.14"]
[Round "6.16"]
[White "Zabotin, Alexander"]
[Black "Lugovskoy, Maxim"]
[Result "1-0"]
[ECO "D31"]
[WhiteElo "2486"]
[BlackElo "2420"]
[Annotator "RC"]
[PlyCount "79"]
[EventDate "2020.10.08"]
[EventType "swiss"]
[EventCountry "RUS"]
[SourceTitle "playchess.com"]
[Source "ChessBase"]
[SourceQuality "1"]
[TimeControl "40/5400+30:1800+30"]

1. d4 d5 {[%emt 0:02:55]} 2. c4 {[%emt 0:00:00]} e6 {[%emt 0:00:04]} 3. Nc3 {[%emt 0:00:06]} a6 {[%emt 0:00:05]} 4. cxd5 {[%emt 0:02:30]} exd5 {[%emt 0:00:08]} 5. Qb3 {[%emt 0:00:45]} Nf6 {[%emt 0:05:07]} 6. Bg5 {[%emt 0:00:52]} c6 {[%emt 0:00:06]} 7. e4 {[%emt 0:21:15]} Be7 {[%emt 0:00:49]} 8. Bxf6 {[%emt 0:01:31]} Bxf6 {[%emt 0:00:22]} 9. e5 {[%emt 0:00:04]} Be7 {[%emt 0:00:21]} 10. Bd3 {[%emt 0:00:47]} b5 {[%emt 0:06:31]} 11. Nge2 {[%emt 0:00:19]} Bb7 {[%emt 0:02:34]} 12. Qc2 {[%emt 0:00:43]} Nd7 {[%emt 0:08:52]} 13. Bxh7 {[%emt 0:04:24]} b4 {[%emt 0:16:34]} 14. Nd1 {[%emt 0:05:41]} Nf8 {[%emt 0:09:12]} 15. Bf5 {[%emt 0:00:08]} Qb6 {[%emt 0:00:42]} 16. b3 {[%emt 0:01:19]} Ne6 {[%emt 0:04:12]} 17. Bxe6 {[%emt 0:01:25]} fxe6 {[%emt 0:00:04]} 18. Nb2 {[%emt 0:01:18]} Kd7 {[%emt 0:10:19]} 19. Na4 {[%emt 0:00:55]} Qa7 {[%emt 0:00:05]} 20. Qg6 {[%emt 0:04:27]} Raf8 {[%emt 0:03:16]} 21. Rc1 {[%emt 0:00:57]} Qb8 {[%emt 0:05:52]} 22. Qxg7 {[%emt 0:02:30]} Qe8 {[%emt 0:01:11]} 23. Nc5+ {[%emt 0:11:10]} Kc8 {[%emt 0:00:42]} 24. Qg4 {[%emt 0:00:30]} Rh6 {[%emt 0:01:41]} 25. f4 {[%emt 0:01:18]} Rg8 {[%emt 0:03:29]} 26. Qf3 {[%emt 0:00:08]} Qg6 {[%emt 0:00:09]} 27. Kf2 {[%emt 0:01:34]} Qh7 {[%emt 0:00:33]} 28. h3 {[%emt 0:01:00]} Rhg6 {[%emt 0:01:39]} 29. g4 {[%emt 0:00:35]} Qh4+ {[%emt 0:00:19]} 30. Ke3 {[%emt 0:00:29]} Rf8 {[%emt 0:00:05]} 31. Qg3 {[%emt 0:00:30]} Qh7 {[%emt 0:00:07]} 32. h4 {[%emt 0:00:10]} Rh6 {[%emt 0:01:35]} 33. g5 {[%emt 0:00:28]} Bxc5 {[%emt 0:00:06]} 34. Rxc5 {[%emt 0:03:40]} Rh5 {[%emt 0:02:26]} 35. Qg4 {[%emt 0:02:58]} Qe4+ {[%emt 0:02:24]} 36. Kd2 {[%emt 0:00:05]} Kb8 {[%emt 0:00:25]} 37. Qxh5 {[%emt 0:00:23]} Rxf4 {[%emt 0:00:04]} 38. Rh2 {[%emt 0:05:51]} Rf3 {[%emt 0:02:00]} 39. Qxf3 {[%emt 0:02:59]} Qxf3 {[%emt 0:00:05]} 40. h5 {[%emt 0:00:00]} 1-0

[Event "73rd RUS-ch Higher League 2020"]
[Site "Sochi"]
[Date "2020.10.14"]
[Round "6.19"]
[White "Yuffa, Daniil"]
[Black "Klimentov, Evgeny"]
[Result "1-0"]
[ECO "A40"]
[WhiteElo "2583"]
[BlackElo "2222"]
[Annotator "RC"]
[PlyCount "79"]
[EventDate "2020.10.08"]
[EventType "swiss"]
[EventCountry "RUS"]
[SourceTitle "playchess.com"]
[Source "ChessBase"]
[SourceQuality "1"]
[TimeControl "40/5400+30:1800+30"]

1. d4 {[%emt 0:00:00]} Nf6 {[%emt 0:00:00]} 2. c4 {[%emt 0:00:00]} e6 {[%emt 0:00:00]} 3. g3 {[%emt 0:00:00]} Bb4+ {[%emt 0:00:29]} 4. Bd2 {[%emt 0:00:11]} a5 {[%emt 0:00:25]} 5. Bg2 {[%emt 0:00:03]} d6 {[%emt 0:00:16]} 6. e3 {[%emt 0:00:12]} O-O {[%emt 0:00:48]} 7. Ne2 {[%emt 0:00:15]} Bxd2+ {[%emt 0:00:31]} 8. Qxd2 {[%emt 0:00:07]} Nbd7 {[%emt 0:00:25]} 9. O-O {[%emt 0:00:23]} e5 {[%emt 0:00:27]} 10. Nbc3 {[%emt 0:00:08]} Re8 {[%emt 0:01:31]} 11. h3 {[%emt 0:04:25]} exd4 {[%emt 0:02:02]} 12. Nxd4 {[%emt 0:04:48]} Nc5 {[%emt 0:05:48]} 13. Qc2 {[%emt 0:01:09]} c6 {[%emt 0:05:15]} 14. Rad1 {[%emt 0:06:12]} Qb6 {[%emt 0:05:01]} 15. Nb3 {[%emt 0:03:23]} Nxb3 {[%emt 0:15:35]} 16. axb3 {[%emt 0:03:17]} Nd7 {[%emt 0:02:52]} 17. Rxd6 {[%emt 0:08:57]} Qb4 {[%emt 0:03:08]} 18. Rd3 {[%emt 0:01:15]} Nc5 {[%emt 0:00:38]} 19. Na2 {[%emt 0:00:07]} Qb6 {[%emt 0:00:11]} 20. Rc3 {[%emt 0:00:07]} Be6 {[%emt 0:07:06]} 21. Rd1 {[%emt 0:03:32]} g6 {[%emt 0:04:17]} 22. Nc1 {[%emt 0:04:37]} Bf5 {[%emt 0:10:19]} 23. Qe2 {[%emt 0:00:20]} Bb1 {[%emt 0:01:25]} 24. Rd4 {[%emt 0:02:41]} Rad8 {[%emt 0:06:43]} 25. Qd1 {[%emt 0:06:06]} Ra8 {[%emt 0:04:12]} 26. h4 {[%emt 0:03:17]} Ne6 {[%emt 0:03:33]} 27. Rd6 {[%emt 0:03:36]} Rad8 {[%emt 0:06:23]} 28. c5 {[%emt 0:04:32]} Qc7 {[%emt 0:01:06]} 29. Ne2 {[%emt 0:01:21]} Bf5 {[%emt 0:00:29]} 30. Qf1 {[%emt 0:05:25]} g5 {[%emt 0:07:24]} 31. e4 {[%emt 0:01:54]} Bg6 {[%emt 0:00:23]} 32. f4 {[%emt 0:03:37]} gxf4 {[%emt 0:00:34]} 33. gxf4 {[%emt 0:00:06]} Nxc5 {[%emt 0:01:40]} 34. Rxd8 {[%emt 0:00:22]} Rxd8 {[%emt 0:00:12]} 35. Rxc5 {[%emt 0:00:30]} Qb6 {[%emt 0:00:16]} 36. Qc1 {[%emt 0:02:13]} Qxb3 {[%emt 0:02:10]} 37. Kh2 {[%emt 0:01:36]} Qd3 {[%emt 0:00:53]} 38. Ng3 {[%emt 0:00:25]} f6 {[%emt 0:01:46]} 39. Rxa5 {[%emt 0:00:41]} Rd4 {[%emt 0:00:24]} 40. Ra8+ {[%emt 0:00:00]} 1-0

[Event "73rd RUS-ch Higher League 2020"]
[Site "Sochi"]
[Date "2020.10.15"]
[Round "7.13"]
[White "Khismatullin, Denis"]
[Black "Murzin, Volodar"]
[Result "1/2-1/2"]
[ECO "E97"]
[WhiteElo "2604"]
[BlackElo "2465"]
[Annotator "RC"]
[PlyCount "94"]
[EventDate "2020.10.08"]
[EventType "swiss"]
[EventCountry "RUS"]
[SourceTitle "playchess.com"]
[Source "ChessBase"]
[SourceQuality "1"]
[TimeControl "40/5400+30:1800+30"]

1. c4 {[%emt 0:04:34]} Nf6 {[%emt 0:00:00]} 2. Nc3 {[%emt 0:00:24]} g6 {[%emt 0:00:00]} 3. e4 {[%emt 0:00:55]} d6 {[%emt 0:00:04]} 4. d4 {[%emt 0:00:05]} Bg7 {[%emt 0:00:03]} 5. Be2 {[%emt 0:05:19]} O-O {[%emt 0:00:26]} 6. Nf3 {[%emt 0:00:04]} e5 {[%emt 0:00:28]} 7. O-O {[%emt 0:00:08]} Nc6 {[%emt 0:00:06]} 8. d5 {[%emt 0:00:08]} Ne7 {[%emt 0:00:09]} 9. b4 {[%emt 0:00:18]} Nh5 {[%emt 0:01:26]} 10. Re1 {[%emt 0:01:41]} f5 {[%emt 0:00:30]} 11. a4 {[%emt 0:07:16]} Nf6 {[%emt 0:11:59]} 12. a5 {[%emt 0:09:05]} c6 {[%emt 0:01:38]} 13. dxc6 {[%emt 0:11:59]} bxc6 {[%emt 0:04:07]} 14. b5 {[%emt 0:19:06]} fxe4 {[%emt 0:10:50]} 15. Ng5 {[%emt 0:01:03]} cxb5 {[%emt 0:11:14]} 16. Ncxe4 {[%emt 0:05:44]} Nxe4 {[%emt 0:08:52]} 17. Nxe4 {[%emt 0:00:14]} b4 {[%emt 0:00:35]} 18. Nxd6 {[%emt 0:16:44]} Be6 {[%emt 0:05:04]} 19. Bf3 {[%emt 0:04:29]} Rb8 {[%emt 0:01:54]} 20. Bb2 {[%emt 0:00:47]} Rxf3 {[%emt 0:01:21]} 21. gxf3 {[%emt 0:00:50]} Nc6 {[%emt 0:00:10]} 22. f4 {[%emt 0:02:39]} Qe7 {[%emt 0:03:35]} 23. f5 {[%emt 0:06:16]} gxf5 {[%emt 0:00:17]} 24. f3 {[%emt 0:01:29]} Kh8 {[%emt 0:01:14]} 25. Kh1 {[%emt 0:00:07]} Rd8 {[%emt 0:03:13]} 26. c5 {[%emt 0:00:05]} Qh4 {[%emt 0:01:06]} 27. Qe2 {[%emt 0:01:22]} Bf6 {[%emt 0:01:43]} 28. Rad1 {[%emt 0:00:08]} b3 {[%emt 0:09:20]} 29. Rg1 {[%emt 0:00:45]} Qf4 {[%emt 0:03:19]} 30. Rg3 {[%emt 0:00:32]} Rg8 {[%emt 0:04:03]} 31. Rdg1 {[%emt 0:00:25]} Rxg3 {[%emt 0:00:09]} 32. Rxg3 {[%emt 0:00:06]} Bd5 {[%emt 0:03:14]} 33. Qd3 {[%emt 0:00:39]} Nd4 {[%emt 0:03:07]} 34. c6 {[%emt 0:00:52]} Bd8 {[%emt 0:00:16]} 35. Nxf5 {[%emt 0:00:38]} Bxf3+ {[%emt 0:01:34]} 36. Rxf3 {[%emt 0:00:18]} Qxf3+ {[%emt 0:00:10]} 37. Qxf3 {[%emt 0:00:06]} Nxf3 {[%emt 0:00:04]} 38. a6 {[%emt 0:00:55]} Nd4 {[%emt 0:00:45]} 39. Nxd4 {[%emt 0:00:32]} exd4 {[%emt 0:00:06]} 40. Kg2 {[%emt 0:00:00]} Kg8 {[%emt 0:00:00]} 41. Kf3 {[%emt 0:01:08]} Kf7 {[%emt 0:00:39]} 42. Bxd4 {[%emt 0:11:35]} Ke6 {[%emt 0:00:35]} 43. Ke4 {[%emt 0:00:21]} Bb6 {[%emt 0:01:32]} 44. Be5 {[%emt 0:00:48]} Bc7 {[%emt 0:00:27]} 45. Bd4 {[%emt 0:00:08]} Bb6 {[%emt 0:01:17]} 46. Be5 {[%emt 0:00:21]} Bc7 {[%emt 0:00:05]} 47. Bd4 {[%emt 0:00:06]} Bb6 {[%emt 0:00:08]} 1/2-1/2

[Event "73rd RUS-ch Higher League 2020"]
[Site "Sochi"]
[Date "2020.10.16"]
[Round "8.18"]
[White "Gaifullin, Artur"]
[Black "Belyakov, Bogdan"]
[Result "1-0"]
[ECO "E66"]
[WhiteElo "2440"]
[BlackElo "2458"]
[Annotator "ChessBase"]
[PlyCount "91"]
[EventDate "2020.10.08"]
[EventType "swiss"]
[EventCountry "RUS"]
[SourceTitle "playchess.com"]
[Source "ChessBase"]
[SourceQuality "1"]
[TimeControl "40/5400+30:1800+30"]

1. d4 {[%emt 0:00:00]} Nf6 {[%emt 0:00:00]} 2. c4 {[%emt 0:00:00]} g6 {[%emt 0:00:00]} 3. Nc3 {[%emt 0:00:00]} Bg7 {[%emt 0:00:10]} 4. g3 {[%emt 0:00:00]} O-O {[%emt 0:00:22]} 5. Bg2 {[%emt 0:00:00]} d6 {[%emt 0:00:36]} 6. Nf3 {[%emt 0:00:05]} c5 {[%emt 0:00:31]} 7. O-O {[%emt 0:00:08]} Nc6 {[%emt 0:00:03]} 8. d5 {[%emt 0:00:06]} Na5 {[%emt 0:00:04]} 9. Nd2 {[%emt 0:00:04]} a6 {[%emt 0:02:56]} 10. Rb1 {[%emt 0:00:05]} Rb8 {[%emt 0:02:05]} 11. b3 {[%emt 0:00:07]} b5 {[%emt 0:01:29]} 12. Bb2 {[%emt 0:00:05]} Bf5 {[%emt 0:11:11]} 13. e4 {[%emt 0:00:42]} Bg4 {[%emt 0:00:04]} 14. Qc2 {[%emt 0:03:36]} Qc8 {[%emt 0:06:09]} 15. Rfe1 {[%emt 0:05:44]} Bh3 {[%emt 0:00:27]} 16. Nd1 {[%emt 0:03:10]} Bxg2 {[%emt 0:03:11]} 17. Kxg2 {[%emt 0:00:01]} e5 {[%emt 0:00:13]} 18. Nf3 {[%emt 0:11:00]} Bh6 {[%emt 0:07:26]} 19. Nxe5 {[%emt 0:21:05]} dxe5 {[%emt 0:01:54]} 20. Bxe5 {[%emt 0:00:09]} Rb6 {[%emt 0:03:04]} 21. Bc3 {[%emt 0:02:28]} Nb7 {[%emt 0:01:42]} 22. e5 {[%emt 0:05:33]} Nh5 {[%emt 0:01:25]} 23. f3 {[%emt 0:00:39]} f6 {[%emt 0:05:53]} 24. e6 {[%emt 0:01:24]} Nd6 {[%emt 0:00:12]} 25. Nf2 {[%emt 0:09:41]} bxc4 {[%emt 0:06:15]} 26. bxc4 {[%emt 0:00:06]} Rxb1 {[%emt 0:02:09]} 27. Qxb1 {[%emt 0:00:18]} Nxc4 {[%emt 0:00:36]} 28. Qb3 {[%emt 0:02:58]} Nd6 {[%emt 0:13:49]} 29. Qb6 {[%emt 0:03:40]} Qb8 {[%emt 0:04:01]} 30. Qxa6 {[%emt 0:00:25]} Re8 {[%emt 0:01:20]} 31. e7 {[%emt 0:14:02]} Qc7 {[%emt 0:03:32]} 32. Re6 {[%emt 0:04:43]} Nf5 {[%emt 0:01:24]} 33. d6 {[%emt 0:06:28]} Qd7 {[%emt 0:01:39]} 34. Qc4 {[%emt 0:00:07]} Kg7 {[%emt 0:05:34]} 35. Ng4 {[%emt 0:01:38]} Nd4 {[%emt 0:01:47]} 36. Bxd4 {[%emt 0:01:49]} cxd4 {[%emt 0:00:02]} 37. Qd5 {[%emt 0:00:33]} d3 {[%emt 0:03:22]} 38. Re4 {[%emt 0:00:24]} d2 {[%emt 0:01:26]} 39. Nxh6 {[%emt 0:00:09]} f5 {[%emt 0:06:18]} 40. Rd4 {[%emt 0:00:00]} Kxh6 {[%emt 0:00:00]} 41. Qf7 {[%emt 0:06:26]} Qc6 {[%emt 0:06:30]} 42. Rxd2 {[%emt 0:00:35]} Qc3 {[%emt 0:00:27]} 43. Rf2 {[%emt 0:04:06]} Qc6 {[%emt 0:00:09]} 44. Qe6 {[%emt 0:00:19]} Ng7 {[%emt 0:00:13]} 45. Qe3+ {[%emt 0:00:16]} g5 {[%emt 0:00:07]} 46. Qd4 {[%emt 0:02:14]} 1-0

[Event "73rd RUS-ch Higher League 2020"]
[Site "Sochi"]
[Date "2020.10.16"]
[Round "8.19"]
[White "Makarian, Rudik"]
[Black "Kardashevskiy, Evgeny"]
[Result "0-1"]
[ECO "D35"]
[WhiteElo "2441"]
[BlackElo "2449"]
[Annotator "ChessBase"]
[PlyCount "78"]
[EventDate "2020.10.08"]
[EventType "swiss"]
[EventCountry "RUS"]
[SourceTitle "playchess.com"]
[Source "ChessBase"]
[SourceQuality "1"]
[TimeControl "40/5400+30:1800+30"]

1. d4 {[%emt 0:00:00]} Nf6 {[%emt 0:00:00]} 2. c4 {[%emt 0:00:00]} e6 {[%emt 0:00:16]} 3. Nf3 {[%emt 0:00:00]} d5 {[%emt 0:00:21]} 4. Nc3 {[%emt 0:00:00]} Nbd7 {[%emt 0:00:51]} 5. cxd5 {[%emt 0:00:00]} exd5 {[%emt 0:00:17]} 6. Bf4 {[%emt 0:00:01]} c6 {[%emt 0:00:54]} 7. h3 {[%emt 0:00:04]} Be7 {[%emt 0:01:26]} 8. e3 {[%emt 0:00:20]} Nf8 {[%emt 0:03:18]} 9. Bd3 {[%emt 0:01:03]} Ne6 {[%emt 0:04:42]} 10. Bh2 {[%emt 0:00:15]} g6 {[%emt 0:01:19]} 11. Ne5 {[%emt 0:05:13]} O-O {[%emt 0:04:26]} 12. O-O {[%emt 0:05:49]} Ng7 {[%emt 0:07:25]} 13. g4 {[%emt 0:00:17]} Nfe8 {[%emt 0:05:10]} 14. Kh1 {[%emt 0:15:15]} Nd6 {[%emt 0:02:54]} 15. Ne2 {[%emt 0:10:57]} f6 {[%emt 0:03:11]} 16. Nf3 {[%emt 0:00:31]} Be6 {[%emt 0:06:33]} 17. Rg1 {[%emt 0:13:08]} Qd7 {[%emt 0:10:09]} 18. Nf4 {[%emt 0:02:57]} Ne4 {[%emt 0:04:41]} 19. Qc2 {[%emt 0:02:55]} Ng5 {[%emt 0:02:34]} 20. Ne1 {[%emt 0:07:38]} Bd6 {[%emt 0:03:36]} 21. h4 {[%emt 0:01:49]} Bxf4 {[%emt 0:07:34]} 22. exf4 {[%emt 0:00:21]} Nh3 {[%emt 0:01:27]} 23. f5 {[%emt 0:00:51]} Nxg1 {[%emt 0:02:09]} 24. fxe6 {[%emt 0:00:40]} Qxe6 {[%emt 0:00:49]} 25. Qd1 {[%emt 0:08:31]} Nh3 {[%emt 0:01:10]} 26. Kg2 {[%emt 0:00:34]} f5 {[%emt 0:03:02]} 27. Kxh3 {[%emt 0:04:57]} fxg4+ {[%emt 0:00:07]} 28. Qxg4 {[%emt 0:05:35]} Rxf2 {[%emt 0:00:54]} 29. Qxe6+ {[%emt 0:01:03]} Nxe6 {[%emt 0:00:09]} 30. Bg1 {[%emt 0:01:57]} Rxb2 {[%emt 0:02:50]} 31. Be3 Rf8 {[%emt 0:01:35]} 32. Kg3 {[%emt 0:02:08]} Ng7 {[%emt 0:01:00]} 33. Nc2 {[%emt 0:03:35]} Nf5+ {[%emt 0:01:27]} 34. Bxf5 {[%emt 0:00:06]} Rxf5 {[%emt 0:00:13]} 35. Rc1 {[%emt 0:00:02]} Rxa2 {[%emt 0:02:18]} 36. Bh6 {[%emt 0:01:48]} a5 {[%emt 0:04:51]} 37. Ne3 {[%emt 0:03:24]} Ra3 {[%emt 0:00:32]} 38. Re1 {[%emt 0:01:10]} Rd3 {[%emt 0:02:57]} 39. Kg2 {[%emt 0:04:04]} Rh5 0-1

[Event "73rd RUS-ch Higher League 2020"]
[Site "Sochi"]
[Date "2020.10.16"]
[Round "8.20"]
[White "Pogosyan, Stefan"]
[Black "Klimentov, Evgeny"]
[Result "1/2-1/2"]
[ECO "A30"]
[WhiteElo "2442"]
[BlackElo "2222"]
[Annotator "ChessBase"]
[PlyCount "80"]
[EventDate "2020.10.08"]
[EventType "swiss"]
[EventCountry "RUS"]
[SourceTitle "playchess.com"]
[Source "ChessBase"]
[SourceQuality "1"]
[TimeControl "40/5400+30:1800+30"]

1. c4 {[%emt 0:00:43]} Nf6 {[%emt 0:00:00]} 2. Nc3 {[%emt 0:00:19]} c5 {[%emt 0:01:21]} 3. g3 {[%emt 0:00:34]} e6 {[%emt 0:02:51]} 4. Nf3 {[%emt 0:00:35]} b6 {[%emt 0:00:41]} 5. Bg2 {[%emt 0:00:34]} Bb7 {[%emt 0:00:19]} 6. O-O {[%emt 0:00:32]} Be7 {[%emt 0:00:15]} 7. b3 {[%emt 0:13:56]} O-O {[%emt 0:00:50]} 8. Bb2 {[%emt 0:00:12]} d5 {[%emt 0:06:50]} 9. cxd5 {[%emt 0:01:35]} Nxd5 {[%emt 0:01:37]} 10. Nxd5 {[%emt 0:05:39]} Bxd5 {[%emt 0:02:26]} 11. d4 {[%emt 0:07:00]} Nc6 {[%emt 0:02:55]} 12. dxc5 {[%emt 0:12:50]} Bxc5 {[%emt 0:00:10]} 13. Qd3 {[%emt 0:05:03]} f5 {[%emt 0:04:28]} 14. Rad1 {[%emt 0:03:21]} Qe7 {[%emt 0:03:44]} 15. Ne5 {[%emt 0:03:24]} Nxe5 {[%emt 0:06:08]} 16. Bxe5 {[%emt 0:01:16]} Rfd8 {[%emt 0:00:40]} 17. Qa6 {[%emt 0:03:14]} Bxg2 {[%emt 0:05:12]} 18. Kxg2 {[%emt 0:00:25]} Rxd1 {[%emt 0:00:43]} 19. Rxd1 {[%emt 0:00:18]} Rd8 {[%emt 0:00:18]} 20. Rd3 {[%emt 0:14:30]} Rxd3 {[%emt 0:00:57]} 21. Qxd3 {[%emt 0:00:16]} Qb7+ {[%emt 0:00:19]} 22. Qf3 {[%emt 0:01:29]} Qxf3+ {[%emt 0:00:25]} 23. Kxf3 {[%emt 0:00:10]} Kf7 {[%emt 0:00:30]} 24. a4 {[%emt 0:03:11]} a6 {[%emt 0:01:06]} 25. h4 {[%emt 0:01:55]} g6 {[%emt 0:00:21]} 26. e3 {[%emt 0:00:51]} b5 {[%emt 0:00:14]} 27. Kf4 {[%emt 0:00:42]} h5 {[%emt 0:01:47]} 28. axb5 {[%emt 0:04:29]} axb5 {[%emt 0:00:06]} 29. Bd4 {[%emt 0:01:16]} Bd6+ {[%emt 0:00:15]} 30. Be5 {[%emt 0:00:54]} Bb4 {[%emt 0:00:18]} 31. Bd4 {[%emt 0:00:29]} Bd6+ {[%emt 0:00:12]} 32. Be5 {[%emt 0:00:06]} Bb4 {[%emt 0:00:07]} 33. Bd4 {[%emt 0:00:05]} Bd6+ {[%emt 0:00:05]} 34. Be5 {[%emt 0:00:12]} Bb4 35. Bd4 {[%emt 0:00:46]} Bd6+ {[%emt 0:00:13]} 36. Be5 {[%emt 0:00:01]} Bb4 {[%emt 0:00:07]} 37. Bd4 {[%emt 0:00:04]} Bd6+ {[%emt 0:00:02]} 38. Be5 {[%emt 0:00:04]} Bb4 {[%emt 0:00:02]} 39. Bd4 {[%emt 0:00:06]} Bd6+ {[%emt 0:00:03]} 40. Be5 {[%emt 0:00:00]} Bb4 {[%emt 0:00:00]} 1/2-1/2